bitfinex/quotes_SOLUSD_20251120
["timestamp","ask_amount","ask_price","bid_price","bid_amount"]
[1763659543472,1.92,131.41,131.34,0.72]
[1763659543664,1.92,131.41,131.32,18.62096]
[1763659543665,60.62610112,131.41,131.36,8.00610112]
[1763659543868,0.7,131.4,131.36,8.00610112]
[1763659544173,0.7,131.4,131.32,0.5]
[1763659544478,8.70610112,131.4,131.35,8.00610112]
[1763659544972,50.7,131.39,131.32,0.5]
[1763659545276,76.82706112,131.39,131.35,8.00610112]
[1763659545468,18.49492881,131.38,131.32,0.5]
[1763659545669,0.7,131.38,131.35,8.00610112]
[1763659545861,0.7,131.38,131.32,0.5]
[1763659546060,1.92,131.4,131.35,8.00610112]
[1763659546376,2.62,131.4,131.33,0.72]
[1763659546672,50.0,131.37,131.33,8.00610112]
[1763659546881,18.12096,131.38,131.35,8.00610112]
[1763659547062,18.12096,131.38,131.32,0.5]
[1763659547063,58.70610112,131.39,131.32,0.5]
[1763659547250,0.7,131.38,131.32,0.5]
[1763659547453,0.7,131.38,131.34,8.00610112]
[1763659547687,0.7,131.38,131.32,0.5]
[1763659547971,0.7,131.38,131.35,8.00610112]
[1763659548283,0.7,131.38,131.32,0.5]
[1763659548455,0.7,131.38,131.35,8.00610112]
[1763659548775,1.92,131.4,131.36,8.00610112]
[1763659548976,1.92,131.4,131.37,8.00610112]
[1763659549184,50.0,131.43,131.39,8.00610112]
[1763659549349,52.64,131.43,131.39,8.00610112]
[1763659549784,52.64,131.43,131.36,0.72]
[1763659549785,50.0,131.46,131.42,8.00610112]
[1763659549951,50.0,131.5,131.43,0.72]
[1763659550144,0.71,131.5,131.46,8.00610112]
[1763659550344,1.94,131.51,131.47,8.00610112]
[1763659550875,63.31364941,131.5,131.45,12.60364941]
[1763659551077,1.94,131.51,131.48,12.60364941]
[1763659551484,62.60364941,131.54,131.49,12.60364941]
[1763659551689,14.54364941,131.53,131.49,12.60364941]
[1763659551895,2.65,131.53,131.49,12.60364941]
[1763659552075,0.71,131.52,131.46,0.71]
[1763659552281,13.31364941,131.52,131.47,12.60364941]
[1763659552460,1.94,131.53,131.51,12.60364941]
[1763659552664,1.94,131.53,131.5,12.60364941]
[1763659552871,1.94,131.53,131.49,12.60364941]
[1763659553069,1.94,131.53,131.46,0.71]
[1763659553070,1.94,131.53,131.51,12.60364941]
[1763659553268,13.31364941,131.56,131.51,12.60364941]
[1763659553469,12.60364941,131.54,131.48,0.71]
[1763659553685,12.60364941,131.53,131.48,12.60364941]
[1763659553880,1.94,131.53,131.5,12.60364941]
[1763659554082,1.94,131.53,131.51,12.60364941]
[1763659554395,0.71,131.58,131.52,12.60364941]
[1763659554584,65.43364941,131.6,131.56,12.60364941]
[1763659554784,0.71,131.59,131.55,12.60364941]
[1763659554991,12.60364941,131.57,131.53,12.60364941]
[1763659555290,0.71,131.59,131.53,12.60364941]
[1763659555491,13.31364941,131.58,131.53,12.60364941]
[1763659555694,0.71,131.58,131.54,12.60364941]
[1763659555897,0.71,131.58,131.55,12.60364941]
[1763659556075,0.71,131.58,131.54,12.60364941]
[1763659556398,12.60364941,131.55,131.45,0.71]
[1763659556696,12.60364941,131.55,131.46,0.71]
[1763659556697,1.92,131.54,131.46,0.71]
[1763659556885,1.92,131.54,131.51,12.60364941]
[1763659557065,1.92,131.54,131.52,12.60364941]
[1763659557264,14.52364941,131.58,131.53,12.60364941]
[1763659557483,15.23364941,131.58,131.53,12.60364941]
[1763659557688,13.31364941,131.57,131.52,12.60364941]
[1763659557876,0.71,131.56,131.52,12.60364941]
[1763659558093,13.31364941,131.56,131.52,12.60364941]
[1763659558473,1.92,131.58,131.52,12.60364941]
[1763659558672,12.60364941,131.57,131.53,12.60364941]
[1763659558994,2.63,131.58,131.53,12.60364941]
[1763659559193,15.23364941,131.58,131.54,12.60364941]
[1763659559496,14.52364941,131.58,131.54,12.60364941]
[1763659559706,1.92,131.58,131.54,12.60364941]
[1763659560072,14.52364941,131.58,131.54,12.60364941]
[1763659560273,1.92,131.58,131.54,0.71]
[1763659560494,13.31364941,131.57,131.52,12.60364941]
[1763659560706,0.71,131.57,131.54,12.60364941]
[1763659561000,0.71,131.57,131.52,12.60364941]
[1763659561200,13.31364941,131.56,131.51,12.60364941]
[1763659561410,12.60364941,131.57,131.52,12.60364941]
[1763659561701,18.32096,131.6,131.56,43.32825882]
[1763659561702,0.2,131.6,131.56,43.32825882]
[1763659561908,0.71,131.68,131.59,22.3924771]
[1763659562204,1.92,131.71,131.67,12.60364941]
[1763659562205,2.63,131.71,131.67,12.60364941]
[1763659562436,6.00254724,131.75,131.69,12.60364941]
[1763659562437,13.31364941,131.74,131.69,12.60364941]
[1763659562578,13.31364941,131.74,131.66,12.60364941]
[1763659562579,13.31364941,131.7,131.66,12.60364941]
[1763659562778,13.31364941,131.7,131.63,18.83096]
[1763659562779,0.71,131.7,131.63,18.83096]
[1763659562973,0.71,131.7,131.63,0.71]
[1763659563174,13.31364941,131.7,131.61,18.12096]
[1763659563373,13.31364941,131.7,131.65,12.60364941]
[1763659563374,0.71,131.7,131.65,12.60364941]
[1763659563580,1.92,131.71,131.67,12.60364941]
[1763659563794,0.71,131.72,131.64,18.12096]
[1763659564108,0.71,131.72,131.62,0.71]
[1763659564109,12.60364941,131.69,131.62,0.71]
[1763659564285,50.71,131.72,131.68,12.60364941]
[1763659564286,0.71,131.72,131.68,12.60364941]
[1763659564482,50.0,131.74,131.69,12.60364941]
[1763659564682,50.0,131.74,131.7,12.60364941]
[1763659564917,50.0,131.8,131.73,12.60364941]
[1763659565116,50.71,131.82,131.78,12.60364941]
[1763659565328,0.71,131.82,131.78,12.60364941]
[1763659565616,12.60364941,131.83,131.79,12.60364941]
[1763659565822,50.0,131.86,131.82,12.60364941]
[1763659566125,2.63,131.88,131.83,12.60364941]
[1763659566324,2.63,131.88,131.77,20.04096]
[1763659566325,1.92,131.88,131.78,0.71]
[1763659566507,0.71,131.87,131.82,12.60364941]
[1763659566705,12.60364941,131.85,131.81,12.60364941]
[1763659566905,0.71,131.87,131.82,12.60364941]
[1763659567224,1.92,131.88,131.85,12.60364941]
[1763659567426,0.2,131.9,131.82,1.92]
[1763659567630,0.71,131.89,131.82,1.92]
[1763659567800,50.71,131.89,131.83,12.60364941]
[1763659568129,12.60364941,131.84,131.77,12.60364941]
[1763659568330,12.60364941,131.84,131.76,0.71]
[1763659568331,9.78882769,131.82,131.76,0.71]
[1763659568524,51.92,131.84,131.8,12.60364941]
[1763659568525,52.63,131.84,131.8,12.60364941]
[1763659568696,65.23364941,131.84,131.79,12.60364941]
[1763659568892,1.92,131.84,131.81,12.60364941]
[1763659569091,12.60364941,131.85,131.81,12.60364941]
[1763659569337,12.60364941,131.85,131.77,1.92]
[1763659569338,0.71,131.85,131.82,12.60364941]
[1763659569623,0.71,131.89,131.84,12.60364941]
[1763659569826,0.71,131.89,131.81,18.12096]
[1763659569827,0.71,131.89,131.85,12.60364941]
[1763659570142,0.71,131.89,131.77,13.70882768]
[1763659570143,0.2,131.9,131.87,12.60364941]
[1763659570325,0.2,131.9,131.89,12.60364941]
[1763659570698,0.2,131.9,131.89,13.31364941]
[1763659570929,0.71,131.99,131.89,13.31364941]
[1763659571119,0.71,131.99,131.9,0.71]
[1763659571322,50.0,132.0,131.9,0.71]
[1763659571528,13.51364941,132.02,131.97,12.60364941]
[1763659571718,12.60364941,131.98,131.9,0.71]
[1763659571919,12.60364941,131.97,131.9,18.83096]
[1763659572224,2.63,131.98,131.95,12.60364941]
[1763659572437,13.31364941,131.97,131.92,12.60364941]
[1763659572609,12.60364941,131.96,131.87,0.71]
[1763659572804,13.31364941,131.96,131.91,12.60364941]
[1763659573000,1.92,131.98,131.94,12.60364941]
[1763659573198,2.63,131.98,131.95,12.60364941]
[1763659573393,0.71,131.98,131.96,12.60364941]
[1763659573598,50.0,132.0,131.96,12.60364941]
[1763659573599,62.60364941,132.0,131.96,12.60364941]
[1763659573809,0.71,131.99,131.95,12.60364941]
[1763659574035,0.71,131.99,131.96,12.60364941]
[1763659574212,0.71,131.99,131.97,12.60364941]
[1763659574713,0.2,132.02,131.98,12.60364941]
[1763659574714,0.91,132.02,131.98,12.60364941]
[1763659575022,0.2,132.02,131.99,12.60364941]
[1763659575418,0.2,132.02,131.95,2.63]
[1763659575650,13.51364941,132.02,131.98,12.60364941]
[1763659575942,0.91,132.02,131.99,12.60364941]
[1763659576110,0.2,132.02,132.0,12.60364941]
[1763659576315,18.12096,131.98,131.91,0.71]
[1763659576510,12.60364941,131.95,131.9,12.60364941]
[1763659576712,12.60364941,131.95,131.84,1.92]
[1763659576713,12.60364941,131.92,131.84,1.92]
[1763659576942,13.31364941,131.94,131.89,12.60364941]
[1763659577110,59.78882769,131.98,131.85,13.31364941]
[1763659577111,13.31364941,131.97,131.93,12.60364941]
[1763659577312,0.71,132.0,131.96,12.60364941]
[1763659577514,12.60364941,132.01,131.97,12.60364941]
[1763659577714,12.60364941,132.01,131.93,0.71]
[1763659577715,0.2,132.02,131.98,12.60364941]
[1763659577925,0.2,132.02,131.94,31.43460941]
[1763659577926,0.2,132.02,131.99,12.60364941]
[1763659578126,0.2,132.02,131.95,12.41882769]
[1763659578337,0.2,132.02,132.0,12.60364941]
[1763659578535,0.2,132.02,132.01,12.60364941]
[1763659578744,0.2,132.02,131.96,18.12096]
[1763659578912,12.60364941,132.01,131.96,12.60364941]
[1763659579107,19.03096,132.02,131.91,1.92]
[1763659579108,22.3924771,131.99,131.91,1.92]
[1763659579309,22.3924771,131.99,131.94,12.60364941]
[1763659579310,12.60364941,131.99,131.94,12.60364941]
[1763659579540,12.60364941,131.97,131.91,2.63]
[1763659579741,0.71,131.98,131.92,12.60364941]
[1763659579742,12.60364941,131.96,131.92,12.60364941]
[1763659579964,0.71,131.98,131.93,12.60364941]
[1763659579965,13.31364941,131.98,131.93,12.60364941]
[1763659580114,13.31364941,131.98,131.9,0.71]
[1763659580446,13.32364941,131.97,131.92,12.60364941]
[1763659580815,13.32364941,131.96,131.92,12.60364941]
[1763659581139,13.32364941,131.96,131.89,18.12096]
[1763659581140,0.72,131.95,131.89,18.12096]
[1763659581355,13.32364941,131.96,131.91,12.60364941]
[1763659581549,13.32364941,131.96,131.89,18.12096]
[1763659581749,12.60364941,131.97,131.93,12.60364941]
[1763659581961,18.84096,131.99,131.95,12.60364941]
[1763659582139,0.72,131.99,131.93,0.69]
[1763659582318,0.72,131.99,131.96,12.60364941]
[1763659582519,1.92,132.0,131.96,12.60364941]
[1763659582928,0.72,131.99,131.95,12.60364941]
[1763659583130,0.2,132.02,131.98,12.60364941]
[1763659583355,12.60364941,132.01,131.93,0.69]
[1763659583538,0.92,132.02,131.97,12.60364941]
[1763659583859,0.92,132.02,131.99,12.60364941]
[1763659584239,0.92,132.02,131.94,13.29364941]
[1763659584240,0.72,132.01,131.97,18.12096]
[1763659584432,0.72,132.01,131.97,30.72460941]
[1763659584731,0.72,132.01,131.97,12.60364941]
[1763659584932,13.32364941,132.01,131.96,12.60364941]
[1763659585133,0.72,132.01,131.97,12.60364941]
[1763659585336,0.2,132.02,131.99,12.60364941]
[1763659585726,0.2,132.02,132.01,12.60364941]
[1763659586146,0.2,132.02,131.96,2.61]
[1763659586147,0.92,132.02,131.96,2.61]
[1763659586347,12.60364941,132.0,131.92,18.12096]
[1763659586524,12.60364941,131.97,131.92,12.60364941]
[1763659586851,9.78882769,131.99,131.93,12.60364941]
[1763659586852,0.72,131.99,131.93,12.60364941]
[1763659587054,13.32364941,131.99,131.94,12.60364941]
[1763659587357,0.2,132.02,131.94,18.12096]
[1763659587652,12.60364941,131.99,131.95,12.60364941]
[1763659587849,12.60364941,131.99,131.94,12.60364941]
[1763659588057,0.72,131.98,131.92,18.81096]
[1763659588353,0.72,131.98,131.95,12.60364941]
[1763659588553,0.72,131.98,131.92,18.81096]
[1763659588554,18.32096,132.02,131.97,12.60364941]
[1763659588766,18.32096,132.02,131.91,0.69]
[1763659588767,12.60364941,131.99,131.91,0.69]
[1763659588964,12.60364941,132.0,131.96,12.60364941]
[1763659589159,0.72,131.99,131.95,12.60364941]
[1763659589360,12.60364941,131.97,131.93,12.60364941]
[1763659589668,0.67,132.0,131.96,12.60364941]
[1763659589853,13.27364941,131.99,131.95,12.60364941]
[1763659590054,0.67,131.99,131.96,12.60364941]
[1763659590253,20.04096,132.01,131.93,0.67]
[1763659590460,102.8,132.02,132.0,12.60364941]
[1763659590781,102.8,132.02,132.01,30.72460941]
[1763659590782,0.2,132.02,132.01,30.72460941]
[1763659591068,2.59,132.11,132.04,18.12096]
[1763659591452,0.2,132.13,132.1,12.60364941]
[1763659591792,0.2,132.13,132.12,43.32825882]
[1763659592084,0.2,132.14,132.13,12.60364941]
[1763659593478,0.2,132.14,132.09,1.92]
[1763659593479,0.87,132.14,132.09,1.92]
[1763659593777,12.60364941,132.11,132.03,1.92]
[1763659594069,12.60364941,132.11,132.06,12.60364941]
[1763659594237,12.60364941,132.11,132.04,18.12096]
[1763659594238,0.67,132.11,132.07,12.60364941]
[1763659594439,0.67,132.1,132.06,12.60364941]
[1763659594645,0.67,132.1,132.07,12.60364941]
[1763659594870,12.60364941,132.12,132.04,0.67]
[1763659595175,12.60364941,132.12,132.08,12.60364941]
[1763659595176,0.67,132.12,132.08,12.60364941]
[1763659595482,0.2,132.14,132.1,12.60364941]
[1763659595639,0.67,132.13,132.06,18.12096]
[1763659595841,0.67,132.13,132.09,12.60364941]
[1763659595842,13.27364941,132.13,132.09,12.60364941]
[1763659596062,0.67,132.13,132.09,12.60364941]
[1763659596263,0.67,132.13,132.06,18.12096]
[1763659596264,0.67,132.12,132.06,18.12096]
[1763659596473,13.27364941,132.12,132.08,12.60364941]
[1763659596654,0.67,132.12,132.08,12.60364941]
[1763659596852,0.67,132.11,132.08,12.60364941]
[1763659597054,0.67,132.11,132.07,12.60364941]
[1763659597376,0.67,132.11,132.08,12.60364941]
[1763659597589,0.67,132.11,132.09,12.60364941]
[1763659597763,0.67,132.11,132.08,12.60364941]
[1763659598147,0.67,132.11,132.06,18.12096]
[1763659598377,22.5924771,132.14,132.09,12.60364941]
[1763659598556,0.67,132.13,132.09,12.60364941]
[1763659598759,13.27364941,132.13,132.08,12.60364941]
[1763659599088,18.12096,132.06,131.97,0.67]
[1763659599248,18.12096,132.06,132.01,12.60364941]
[1763659599249,12.60364941,132.05,132.01,12.60364941]
[1763659599451,18.79096,132.06,132.02,12.60364941]
[1763659599754,12.60364941,132.12,131.97,2.59]
[1763659599755,0.67,132.1,132.05,12.60364941]
[1763659599989,0.67,132.1,132.03,0.67]
[1763659599990,2.59,132.13,132.06,18.79096]
[1763659600160,2.59,132.13,132.09,12.60364941]
[1763659600348,2.59,132.13,132.06,0.67]
[1763659600548,2.59,132.13,132.1,12.60364941]
[1763659600750,15.19364941,132.13,132.06,20.71096]
[1763659600949,14.52364941,132.13,132.06,20.04096]
[1763659601285,13.27364941,132.12,132.06,20.04096]
[1763659601459,0.67,132.12,132.08,12.60364941]
[1763659602003,12.60364941,132.09,131.97,0.67]
[1763659602290,12.60364941,132.05,131.97,0.67]
[1763659602470,68.12096,132.07,131.96,1.92]
[1763659602471,12.60364941,132.04,132.0,12.60364941]
[1763659602647,12.60364941,132.05,132.0,12.60364941]
[1763659602850,0.67,132.06,132.02,12.60364941]
[1763659603280,0.67,132.06,131.99,18.79096]
[1763659603583,12.60364941,132.05,132.01,12.60364941]
[1763659603976,18.12096,132.07,132.01,12.60364941]
[1763659603977,0.67,132.04,132.01,12.60364941]
[1763659604281,0.67,132.04,132.0,12.60364941]
[1763659604488,13.27364941,132.04,131.96,1.92]
[1763659604650,12.60364941,132.03,131.98,12.60364941]
[1763659604848,12.60364941,132.03,131.96,1.92]
[1763659604849,0.67,132.03,131.99,12.60364941]
[1763659605051,13.27364941,132.03,131.97,18.12096]
[1763659605248,0.67,132.08,132.02,12.60364941]
[1763659605472,12.60364941,132.07,132.02,12.60364941]
[1763659605657,12.60364941,132.07,132.03,12.60364941]
[1763659605988,13.27364941,132.07,132.03,12.60364941]
[1763659606198,1.92,132.08,132.04,12.60364941]
[1763659606350,0.67,132.08,132.02,9.78882769]
[1763659606679,0.67,132.08,132.05,12.60364941]
[1763659606980,0.67,132.08,132.04,12.60364941]
[1763659607283,12.60364941,132.06,132.0,1.92]
[1763659607512,12.60364941,132.06,131.99,12.60364941]
[1763659607513,12.60364941,132.03,131.99,12.60364941]
[1763659607786,12.60364941,132.02,131.97,12.60364941]
[1763659607980,10.45882769,132.05,131.97,12.60364941]
[1763659607981,12.60364941,132.01,131.97,12.60364941]
[1763659608163,12.60364941,132.02,131.97,12.60364941]
[1763659608356,1.92,132.03,131.99,12.60364941]
[1763659608559,13.27364941,132.02,131.97,12.60364941]
[1763659608955,0.67,132.01,131.98,12.60364941]
[1763659609156,1.92,132.03,131.99,12.60364941]
[1763659609362,0.67,132.03,132.0,12.60364941]
[1763659609861,13.27364941,132.06,132.01,12.60364941]
[1763659610063,13.27364941,132.05,131.98,18.12096]
[1763659610268,13.27364941,132.05,132.01,12.60364941]
[1763659610585,0.67,132.05,132.01,12.60364941]
[1763659610751,0.71,132.04,132.0,7.97620437]
[1763659610949,11.70882769,132.03,131.94,0.68]
[1763659611157,28.01716437,132.03,131.99,7.97620437]
[1763659611361,0.71,132.02,131.98,7.97620437]
[1763659611563,8.68620437,132.05,132.0,7.97620437]
[1763659611762,0.71,132.04,131.97,0.68]
[1763659611994,8.68620437,132.04,131.99,7.97620437]
[1763659612198,9.78882769,132.03,131.96,7.97620437]
[1763659612399,15.51494557,132.03,131.96,7.97620437]
[1763659612591,26.80716437,132.03,131.98,7.97620437]
[1763659612893,18.83096,132.03,132.0,7.97620437]
[1763659613096,8.68620437,132.05,132.01,7.97620437]
[1763659613276,0.71,132.04,132.01,7.97620437]
[1763659613479,0.71,132.04,132.02,7.97620437]
[1763659613798,0.71,132.04,132.0,7.97620437]
[1763659614302,0.71,132.04,132.01,7.97620437]
[1763659614601,26.80716437,132.07,132.03,7.97620437]
[1763659614791,26.80716437,132.07,132.02,7.97620437]
[1763659614792,10.49882769,132.06,132.02,7.97620437]
[1763659614961,8.68620437,132.06,132.02,7.97620437]
[1763659615166,0.71,132.05,132.03,7.97620437]
[1763659615380,36.59599206,132.08,132.04,7.97620437]
[1763659615565,0.71,132.07,132.04,7.97620437]
[1763659616484,8.68620437,132.07,132.02,7.97620437]
[1763659616806,7.97620437,132.06,132.02,7.97620437]
[1763659617099,0.71,132.06,132.03,7.97620437]
[1763659617280,0.71,132.06,132.04,7.97620437]
[1763659617496,5.74976036,132.08,132.04,7.97620437]
[1763659617876,5.03976036,132.08,132.05,7.97620437]
[1763659618103,20.04096,132.09,132.05,7.97620437]
[1763659618303,0.71,132.08,132.05,7.97620437]
[1763659618797,5.74779569,132.08,132.04,7.97620437]
[1763659619178,0.71,132.08,132.05,7.97620437]
[1763659619814,0.71,132.07,132.03,18.12096]
[1763659619969,0.71,132.07,132.03,7.97620437]
[1763659620168,8.68620437,132.07,132.02,26.09716437]
[1763659620499,7.97620437,132.03,131.95,0.27]
[1763659620684,0.71,132.03,131.99,7.97620437]
[1763659621066,0.71,132.03,131.94,9.78882769]
[1763659621395,0.71,132.03,131.93,1.92]
[1763659621396,7.97620437,132.01,131.96,7.97620437]
[1763659621605,0.71,132.06,132.0,7.97620437]
[1763659621814,36.59599206,132.07,132.02,7.97620437]
[1763659621978,2.19999999,132.14,132.06,7.97620437]
[1763659621979,8.68620437,132.1,132.06,7.97620437]
[1763659622313,0.71,132.13,132.04,1.92]
[1763659622610,8.68620437,132.13,132.08,7.97620437]
[1763659622767,0.71,132.13,132.08,7.97620437]
[1763659622968,7.97620437,132.11,132.06,7.97620437]
[1763659623173,7.97620437,132.11,131.96,23.01256259]
[1763659623174,7.97620437,132.07,131.96,23.01256259]
[1763659623470,9.78882769,132.09,132.0,18.12096]
[1763659623695,10.49882769,132.09,132.0,18.12096]
[1763659623916,0.71,132.08,132.0,18.12096]
[1763659624069,0.71,132.08,132.01,1.92]
[1763659624514,0.71,132.08,132.04,7.97620437]
[1763659624805,0.71,132.08,132.01,1.92]
[1763659624806,9.78882769,132.11,132.06,7.97620437]
[1763659625024,8.68620437,132.13,132.04,18.12096]
[1763659625192,0.71,132.12,132.07,7.97620437]
[1763659625366,7.97620437,132.09,132.02,18.12096]
[1763659625569,7.97620437,132.09,132.04,7.97620437]
[1763659625803,0.71,132.08,132.06,7.97620437]
[1763659626172,26.80716437,132.11,132.06,7.97620437]
[1763659626400,9.78882769,132.13,132.02,18.39096]
[1763659626401,0.71,132.1,132.08,7.97620437]
[1763659627036,7.97620437,132.09,132.01,1.92]
[1763659627201,9.78882769,132.09,132.04,7.97620437]
[1763659627394,0.71,132.08,132.04,7.97620437]
[1763659627699,0.71,132.08,132.03,18.12096]
[1763659628026,0.71,132.08,132.05,7.97620437]
[1763659628234,8.68620437,132.08,132.03,7.97620437]
[1763659628538,0.71,132.08,132.07,7.97620437]
[1763659628700,18.12096,132.1,132.07,7.97620437]
[1763659628900,0.71,132.09,132.06,7.97620437]
[1763659629439,2.63,132.09,132.0,26.09716437]
[1763659629608,2.63,132.09,132.06,7.97620437]
[1763659629815,1.92,132.09,132.07,7.97620437]
[1763659630039,10.49882769,132.11,132.07,7.97620437]
[1763659630200,0.71,132.11,132.09,7.97620437]
[1763659630598,0.71,132.11,132.05,7.97620437]
[1763659630599,7.97620437,132.1,132.05,7.97620437]
[1763659630900,7.97620437,132.08,132.03,20.04096]
[1763659631105,9.78882769,132.09,132.04,7.97620437]
[1763659631320,7.97620437,132.08,131.99,1.92]
[1763659631528,7.97620437,132.08,132.03,7.97620437]
[1763659631529,17.76503206,132.07,132.03,7.97620437]
[1763659631828,18.12096,132.01,131.97,7.97620437]
[1763659632033,7.97620437,131.98,131.89,1.92]
[1763659632343,7.97620437,131.99,131.89,20.31096]
[1763659632535,10.49882769,131.98,131.94,7.97620437]
[1763659632716,20.04096,132.01,131.95,7.97620437]
[1763659633018,57.97620437,132.08,131.98,7.97620437]
[1763659633019,10.49882769,132.03,131.98,7.97620437]
[1763659633234,0.71,132.03,131.99,7.97620437]
[1763659633524,0.71,132.03,132.0,7.97620437]
[1763659633727,0.71,132.03,131.99,7.97620437]
[1763659633933,1.92,132.05,132.02,7.97620437]
[1763659634100,1.92,132.05,131.99,18.12096]
[1763659634302,2.63,132.05,131.99,18.12096]
[1763659634530,0.71,132.08,132.04,7.97620437]
[1763659634842,9.78882769,132.07,131.95,2.19]
[1763659635005,7.97620437,132.05,132.01,7.97620437]
[1763659635343,7.97620437,132.05,131.97,18.12096]
[1763659635344,0.71,132.06,132.02,7.97620437]
[1763659635502,0.71,132.06,132.03,7.97620437]
[1763659635705,8.68620437,132.06,132.02,7.97620437]
[1763659636200,55.05740913,132.08,132.02,7.97620437]
[1763659636201,0.71,132.05,132.02,7.97620437]
[1763659636432,0.71,132.05,132.01,7.97620437]
[1763659637138,0.71,132.05,132.02,7.97620437]
[1763659637434,0.71,132.05,132.03,7.97620437]
[1763659637600,0.71,132.07,132.03,7.97620437]
[1763659638033,0.71,132.07,132.04,7.97620437]
[1763659638696,0.71,132.07,132.03,7.97620437]
[1763659639102,0.71,132.07,132.02,7.97620437]
[1763659639332,8.68620437,132.07,132.02,7.97620437]
[1763659639532,0.71,132.1,132.06,7.97620437]
[1763659639736,0.71,132.12,132.09,7.97620437]
[1763659639941,0.2,132.14,132.11,7.97620437]
[1763659640106,0.2,132.14,132.12,7.97620437]
[1763659640444,0.2,132.14,132.13,7.97620437]
[1763659640811,0.92,132.14,132.12,7.97620437]
[1763659641142,0.92,132.14,132.1,18.12096]
[1763659641303,0.2,132.14,132.12,7.97620437]
[1763659642128,0.2,132.14,132.13,7.97620437]
[1763659642302,0.92,132.14,132.1,18.12096]
[1763659642505,0.92,132.14,132.12,7.97620437]
[1763659642705,0.2,132.14,132.11,7.97620437]
[1763659643004,0.72,132.13,132.11,7.97620437]
[1763659643209,0.2,132.14,132.12,7.97620437]
[1763659643542,0.72,132.13,132.1,7.97620437]
[1763659645254,0.72,132.13,132.11,7.97620437]
[1763659645410,7.97620437,132.12,132.07,7.97620437]
[1763659645812,7.97620437,132.09,132.0,7.97620437]
[1763659646103,1.92,132.09,132.06,7.97620437]
[1763659646407,1.92,132.09,132.03,18.12096]
[1763659646613,1.92,132.09,132.08,7.97620437]
[1763659646850,0.72,132.1,132.03,18.39096]
[1763659647003,0.72,132.1,132.08,7.97620437]
[1763659647405,0.72,132.1,132.09,7.97620437]
[1763659647629,0.92,132.14,132.09,7.97620437]
[1763659647805,0.92,132.14,132.12,7.97620437]
[1763659648347,0.92,132.14,132.13,7.97620437]
[1763659648348,0.2,132.14,132.13,7.97620437]
[1763659649111,0.92,132.14,132.06,10.05882769]
[1763659649312,0.92,132.14,132.11,26.09716437]
[1763659649516,0.72,132.13,132.11,18.12096]
[1763659649714,0.72,132.13,132.11,26.09716437]
[1763659649928,0.2,132.14,132.12,7.97620437]
[1763659650112,0.2,132.14,132.13,7.97620437]
[1763659650514,0.92,132.14,132.12,7.97620437]
[1763659650716,0.92,132.14,132.08,18.12096]
[1763659650915,9.78882769,132.12,131.97,23.42275728]
[1763659651144,9.78882769,132.12,132.0,7.97620437]
[1763659651145,50.0,132.09,132.0,7.97620437]
[1763659651352,7.97620437,132.05,131.98,0.72]
[1763659651640,7.97620437,132.05,131.93,25.09150632]
[1763659651641,7.97620437,132.04,131.96,0.72]
[1763659651950,10.40882769,132.05,132.01,7.97620437]
[1763659652119,18.38503206,132.05,131.98,0.72]
[1763659652313,7.97620437,132.04,131.99,7.97620437]
[1763659652553,7.97620437,132.03,131.94,0.72]
[1763659652739,9.78882769,132.05,132.0,7.97620437]
[1763659653051,7.97620437,132.03,131.98,7.97620437]
[1763659653212,17.76503206,132.03,131.98,7.97620437]
[1763659653414,8.59620437,132.02,131.95,0.72]
[1763659653612,9.78882769,132.04,131.98,7.97620437]
[1763659653809,1.92,132.03,131.99,7.97620437]
[1763659654242,8.59620437,132.02,131.97,7.97620437]
[1763659654536,17.76503206,132.01,131.97,7.97620437]
[1763659654745,9.78882769,132.01,131.97,7.97620437]
[1763659654920,1.92,132.03,131.98,7.97620437]